Cogmind - Beta 16.1 @@@ ROGUE MODE // 2026.04.20 @ 22:44:34 Player: Namu Result: Destroyed by S-10 Pest with Light Assault Rifle Performance ------------- Evolutions (0) 0 Regions Visited (1) 200 Robots Destroyed (14) 70 Value Destroyed (385) 385 Prototype IDs (0) 0 Alien Tech Used (0) 0 Bonus (0) 0 TOTAL SCORE: 655 Bonus ------- None Cogmind --------- Core Integrity 0/250 Matter 285/300 Energy 125/125 System Corruption 0% Temperature Warm (112) Movement Walking (190) Ox1 Location -10/Materials Parts ------- > --- POWER (1) -------- Light Ion Engine > --- PROPULSION (2) --- Aluminum Leg > --- UTILITY (2) ------ Medium Storage Unit > --- WEAPON (2) ------- Particle Gun Assault Rifle > --- INVENTORY (10) --- Ion Engine Light Ion Engine Light Ion Engine Wheel Compact Wheel Small Laser Small Laser Light Assault Rifle Peak State ------------ > --- POWER ------------ Light Ion Engine > --- PROPULSION ------- Light Treads Light Treads > --- UTILITY ---------- Small Storage Unit Visual Processing Unit > --- WEAPON ----------- Assault Rifle Light Assault Rifle > --- INVENTORY -------- Light Ion Engine Aluminum Leg Aluminum Leg Wheel Compact Wheel Light Assault Rifle [Rating: 8] Favorites ----------- Power Light Ion Engine Engine Light Ion Engine Propulsion Aluminum Leg Treads Light Treads Leg Aluminum Leg Utility Medium Storage Unit Device Heat Sink Storage Medium Storage Unit Processor Visual Processing Unit Weapon Light Assault Rifle Energy Gun Small Laser Ballistic Gun Light Assault Rifle Build | -11 -10 ------- Run | Yrd Mat Slots Evolved . | . . Power . | . . Propulsion . | . . Utility . | . . Weapon . | . . Parts Attached 22 | 4 18 Power 5 | . 5 Engine 5 | . 5 Core . | . . Reactor . | . . Propulsion 4 | 2 2 Treads 2 | 1 1 Leg 2 | 1 1 Wheel . | . . Hover . | . . Flight . | . . Utility 5 | 1 4 Device 2 | . 2 Storage 2 | 1 1 Processor 1 | . 1 Hackware . | . . Protection . | . . Artifact . | . . Weapon 8 | 1 7 Energy Gun 5 | . 5 Energy Cannon . | . . Ballistic Gun 3 | 1 2 Ballistic Cannon . | . . Launcher . | . . Special Weapon . | . . Impact Weapon . | . . Slashing Weapon . | . . Piercing Weapon . | . . Special Melee Weapon . | . . Unidentified Prototypes . | . . Parts Lost 6 | . 6 Power . | . . Propulsion 3 | . 3 Utility 1 | . 1 Weapon 2 | . 2 Highest Loss Streak 2 | . 2 To Critical Strikes . | . . Average Backups 6 | 5 7 Power 2 | 1 2 Propulsion 2 | 2 2 Utility . | . . Weapon 2 | 1 2 Tool/Special . | . . Unused Backups 5 | . 5 Power 1 | . 1 Propulsion 2 | . 2 Utility 1 | . 1 Weapon 1 | . 1 Tool/Special . | . . Average Slot Usage (%) 87 | . 87 Engine 13 | . 13 Treads 6 | . 6 Leg 17 | . 17 Device 4 | . 4 Storage 14 | . 14 Processor 2 | . 2 Energy Gun 10 | . 10 Ballistic Gun 17 | . 17 Peak Build Rating 8 | 4 8 Average Rating 6 | 3 6 On Entrance 2 | . 4 Avg Prop Armor Cover (%) 10 | 10 . Naked Turns . | . . Heaviest Build 19 | 7 19 Greatest Support 46 | 20 46 Greatest Overweight (x) 1 | . 1 Average Overweight (x) . | . . Largest Inventory Capacity 10 | 8 10 Average Capacity 9 | 6 9 Most Carried 10 | 8 10 Average Carried 6 | 6 7 Final Capacity 10 | 8 10 Final Carried 8 | 8 8 Class Distribution -------------------- 100% | Mutant Dominant Class ---------------- Mutant | -10/Materials Resources | -11 -10 ----------- Run | Yrd Mat Matter Collected 557 | 210 347 Remotely . | . . Salvage Created 474 | . 474 Parts 24 | . 24 Haulers Intercepted . | . . Recyclers Shooed . | . . Parts Field Recycled . | . . Retrieved Matter . | . . Parts Self-Destructed . | . . Prevented . | . . Parts Restored . | . . Kills | -11 -10 ------- Run | Yrd Mat Combat Hostiles Destroyed 11 | . 11 Guns 11 | . 11 Classes Destroyed 5 | . 5 Builder 1 | . 1 Operator 1 | . 1 Watcher 1 | . 1 Swarmer 3 | . 3 Grunt 8 | . 8 Best Kill Streak 4 | . 4 Combat Bots Only 3 | . 3 Max Kills in Single Turn 2 | . 2 Gunslinging 1 | . 1 Exploded . | . . Melee . | . . Uniques/NPCs Destroyed . | . . Combat | -11 -10 -------- Run | Yrd Mat Hostile Shots Fired 172 | . 172 Missed 53 | . 53 Hits 119 | . 119 Projectile 119 | . 119 Critical Strikes 1 | . 1 Damage Taken 1310 | . 1310 Core 251 | . 251 Absorbed by Shields . | . . Core Remaining (%) 100 | 100 . Volleys Fired 63 | . 63 Largest 2 | . 2 Hottest 85 | . 85 Shots Fired 121 | . 121 Gun 121 | . 121 Cannon . | . . Launcher . | . . Special . | . . Kinetic 70 | . 70 Thermal 41 | . 41 Explosive . | . . Electromagnetic 10 | . 10 Robot Hit Streak 8 | . 8 Robot Miss Streak 5 | . 5 Penetration Max . | . . Secondary Targets 5 | . 5 Max Gunslinging Chain 1 | . 1 Shots Hit Robots 61 | . 61 Core Hits 28 | . 28 Critical Kills . | . . Critical Parts Destroyed . | . . Critical Strikes . | . . Melee Attacks . | . . Impact . | . . Slashing . | . . Piercing . | . . Sneak Attacks . | . . Combat Hostiles . | . . Follow-up Attacks . | . . Damage Inflicted 927 | . 927 Guns 763 | . 763 Cannons . | . . Explosions 164 | . 164 Melee . | . . Ramming . | . . Kinetic 428 | . 428 Thermal 407 | . 407 Explosive . | . . Electromagnetic 92 | . 92 Impact . | . . Slashing . | . . Piercing . | . . Highest Corruption . | . . Average Corruption . | . . Corruption Purged . | . . Corruption Blocked . | . . Overload Shots . | . . Overflow Damage . | . . Projectiles . | . . Explosions . | . . Melee . | . . Knockbacks . | . . Impact . | . . Kinetic . | . . Secondary . | . . Self-Inflicted Damage . | . . Shots . | . . Rammed . | . . Targets Rammed . | . . Kicked . | . . Crushed . | . . Highest Temperature 158 | . 158 Average Temperature 49 | . 49 Received Heat Transfer 555 | . 555 Siege Activations . | . . Martial Activations . | . . Shielding Activations . | . . Robots Disrupted . | . . Combat Hostiles . | . . Robots Corrupted . | . . Combat Hostiles . | . . Parts Fried . | . . Impact Corruptions . | . . Robots Melted . | . . Combat Hostiles . | . . Parts Melted 1 | . 1 Heat Transferred 708 | . 708 Parts Sabotaged . | . . Parts Stolen . | . . Parts Stripped . | . . Power Chain Reactions 1 | . 1 Alert | -11 -10 ------- Run | Yrd Mat Maximum Alert Level . | . . Low Security (%) 100 | 100 100 Level 1 . | . . Level 2 . | . . Level 3 . | . . Level 4 . | . . Level 5 . | . . High Security . | . . Max Security . | . . Peak Influence 93 | . 93 Initial . | . . Average 31 | . 35 Influence Increases 325 | . 325 Destroy 0b10 Robot/C 220 | . 220 Destroy 0b10 Robot/NC 15 | . 15 Destroy Leader 42 | . 42 Disable Machine 30 | . 30 Destroy Structure 3 | . 3 Lose Combat Pursuer 15 | . 15 Influence Decreases 276 | . 276 Time Decay 229 | . 229 Lost Part 47 | . 47 Squads Dispatched 2 | . 2 Investigation . | . . Extermination . | . . Reinforcement 2 | . 2 Assault . | . . Garrison . | . . Intercept . | . . Searches Triggered . | . . Construction Impeded . | . . Haulers Reinforced . | . . Active Scanning Responses . | . . Cargo Convoy Interrupts . | . . Stealth | -11 -10 --------- Run | Yrd Mat Distress Signals 2 | . 2 Communications Jammed . | . . Distress Signals . | . . Times Spotted 21 | . 21 Peak Tracking Total 6 | . 6 Tactical Retreats 1 | . 1 Traps | -11 -10 ------- Run | Yrd Mat Traps Triggered . | . . Indirectly . | . . Trap Hack Attempts . | . . Triggered . | . . Disarmed . | . . Reprogrammed . | . . Reused . | . . Traps Extracted . | . . Installed . | . . Triggered . | . . Machines | -11 -10 ---------- Run | Yrd Mat Machines Disabled 2 | . 2 Max in Single Turn 2 | . 2 Machines Repaired . | . . Machines Dismantled . | . . Machines Sabotaged . | . . Overloaded Fab Kills . | . . Hacking | -11 -10 --------- Run | Yrd Mat Machines Accessed 2 | . 2 Terminals 1 | . 1 Fabricators . | . . Repair Stations . | . . Recycling Units 1 | . 1 Scanalyzers . | . . Garrison Access . | . . Total Hacks 4 | . 4 Successful 3 | . 3 Failed 1 | . 1 Catastrophic . | . . Database Lockouts . | . . Manual . | . . Terminals 1 | . 1 Fabricators . | . . Repair Stations . | . . Recycling Units 3 | . 3 Scanalyzers . | . . Garrison Access . | . . Terminal Hacks 1 | . 1 Alert Level 1 | . 1 Fabricator Hacks . | . . Repair Station Hacks . | . . Recycling Unit Hacks 2 | . 2 Recycle Component 2 | . 2 Scanalyzer . | . . Garrison Access Hacks . | . . Unauthorized Hacks . | . . Terminals . | . . Fabricators . | . . Repair Stations . | . . Recycling Units . | . . Scanalyzers . | . . Garrison Access . | . . Data Cores Recovered . | . . Used . | . . Hacking Detections 1 | . 1 Full Trace Events 1 | . 1 Feedback Events . | . . Feedback Blocked . | . . Robot Schematics Acquired . | . . Robots Built . | . . Authchips . | . . Time . | . . Total Robot Build Rating . | . . Part Schematics Acquired . | . . Parts Built . | . . Authchips . | . . Time . | . . Total Part Build Rating . | . . Part Studies Acquired . | . . Parts Repaired . | . . Time . | . . Parts Recycled 2 | . 2 Recycled Matter . | . . Retrieved Matter . | . . Retrieved Components . | . . Parts Scanalyzed . | . . Part Schematics Acquired . | . . Parts Damaged . | . . Bothacking | -11 -10 ------------ Run | Yrd Mat Used RIF Installer . | . . Robots Hacked . | . . Non-combat . | . . Combat . | . . Robot Hacks Applied . | . . Relay Couplers Released . | . . Fabnet Peak Effective % . | . . Robots Rewired . | . . Allies Hacked . | . . Hacks Repelled . | . . Allies | -11 -10 -------- Run | Yrd Mat Total Allies . | . . Largest Group . | . . Highest-Rated Group . | . . Highest-Rated Ally . | . . Total Orders . | . . Ally Attacks . | . . Total Damage . | . . Kills . | . . Allies Corrupted . | . . Allies Melted . | . . Intel | -11 -10 ------- Run | Yrd Mat Active Infowar (turns) 89 | . 89 Optics 89 | . 89 Robot Analysis Total . | . . Derelict Logs Recovered . | . . Drone Launches . | . . Drone Recoveries . | . . Exploration | -11 -10 ------------- Run | Yrd Mat Turns Passed 665 | 88 577 Spaces Moved 297 | 60 237 Core 21 | 21 . Treads 80 | 36 44 Legs 196 | 3 193 Wheels . | . . Hover . | . . Flight . | . . Fastest Speed 50 | 50 120 Average Speed 135 | 119 139 Slowest Speed 190 | 160 190 Overloaded Moves . | . . Propulsion Burnouts . | . . Robots Hopped . | . . Potential Cave-ins . | . . Cave-ins Triggered . | . . Exploration Rate (%) 17 | 3 32 Regions Visited 1 Branch Regions . Pre-discovered Areas . | . . Known Exits Taken . | . . Unknown Exits Taken 1 | 1 . Scrap Searched . | . . Spaces Dug . | . . Terrain Destroyed 3 | . 3 Melee . | . . Projectile . | . . AOE 3 | . 3 Terrain Rammed . | . . Walls Destroyed . | . . Machines Disabled . | . . Actions | -11 -10 --------- Run | Yrd Mat Total 443 | 74 369 Wait 27 | 3 24 Move 296 | 59 237 Hop . | . . Pick Up 22 | 8 14 Fast Attach 4 | 4 . Attach 10 | . 10 Detach 2 | . 2 Swap 14 | . 14 Drop 5 | . 5 Fire 63 | . 63 Melee . | . . Ram . | . . Kick . | . . Crush . | . . Escape Stasis . | . . Rewire . | . . Trap . | . . Miscellaneous . | . . Route ------- -11/Scrapyard -10/Materials (discovered 1 exit: [*Mat]) History --------- Turn | Location | Event 5 | -11/Scrapyard | Discovered new exit (range 16) 89 | -11/Scrapyard | Entered Materials 307 | -10/Materials | Build established: Mutant 321 | -10/Materials | Core integrity fell below 50% 507 | -10/Materials | Discovered new exit (range 16) 544 | -10/Materials | Core integrity fell below 20% 666 | -10/Materials | Destroyed by S-10 Pest with Light Assault Rifle Last Messages --------------- 00569_ Acquired Lgt. Assault Rifle. 00574_ K-01 Serf collects debris. 00585_ Acquired 15 matter. 00589_ K-01 Serf collects debris. 00596_ Connecting with Recycling Unit... >>Recycle(Lgt. Assault Rifle) Accepting Lgt. Assault Rifle... >>Recycle(Lgt. Assault Rifle) Accepting Lgt. Assault Rifle... 00604_ K-01 Serf cleans the Recycling Unit. 00613_ K-01 Serf collects debris. 00616_ W-16 Scout destroyed. 00616_ K-01 Serf collects debris. 00619_ Acquired 14 matter. 00620_ K-01 Serf collects debris. 00620_ W-16 Scout sends out distress signal. 00623_ K-01 Serf collects debris. 00632_ S-10 Pest destroyed. 00632_ K-01 Serf collects debris. 00649_ Acquired 9 matter. Map ----- +----------------------------------------------------+ | ????????????????????????????????????????? | | ????????????????????????????????????????? | | ????????????????????????????????????????? | | ????????????????????????????????????????? | | ????????????????????????????????????????? | | ????????????????????????????????????????? | | ????????????????????????????????????????? | | ????????????????????????????????????????? | | ????????????????????????????????????????? | | ????????????????????????????????????????? | | ????????????????????????????????????????? | | ??????##############????????????????????? | | ??????# + #????????????????????? | | ??????##### * #????????????????????? | | ??????????# #????????????????????? | | ??????????# | !|!#????????????????????? | | ??????????# !|!#????? ??????????????? | | ??????????# || #????""#?????????????? | | ??????????# "Y" #????T"#?????????????? | | ??????????# """ #??? ""#?????????????? | | ??????????# [ #??? ??????????????? | | ??????????######+###?? ???????????????? | | ###+########## *%= ###+###########??????? | | = #??????? | | "k < #??????? | | %@ s #??????? | | #### ###### ###+####??????? | | " """ #??#######????# #?????????????? | | " """ #?????????????# #?????????????? | | " """ #?????????????# #?????????????? | | #?????????????# #?????????????? | | #?????????????#s#?????????????? | | ###???????????# #?????????????? | | ####### #???????????# #?????????????? | | #?????# #???????????? ??????????????? | | #?????# #???????????? ??????????????? | | #?????# #???????????? ??????????????? | | #?????# #???????????? ??????????????? | | #?????# #???????????? ??????????????? | | #?????# #???????????? ??????????????? | | #?????# ^^ #???????????? ??????????????? | | #?????# #???????????????????????????? | | #?????# #???????????????????????????? | | ?????? +???????????????????????????? | | ????? #???????????????????????????? | | ?????"" #???????????????????????????? | | ????"""" ##???????????????????????????? | | ??? """ #????????????????????????????? | | ?????? #????????????????????????????? | | ?????? #????????????????????????????? | +----------------------------------------------------+ Best States ------------- Heat Dissipation 35 Energy Generation 10 Energy Capacity 250 Matter Stores 300 Matter Capacity 300 Sight Range 18 Terrain Scan Density 10 Additional Mass Support 6 Evasion (%) 55 Recoil Reduction 2 Item Schematics ----------------- None Robot Schematics ------------------ None Fabricated ------------ Nothing Repaired ---------- Nothing Studied --------- None Alien Tech Used ----------------- None Achievements -------------- DATA ERROR: Steam Global Achievement% Spot Them First There's More Where That Came From Challenges ------------ None Game ------ Seed SalvageHardenedTelecube Manual? 0 Play Time 00:10:58 Cumulative 4.3 hours Start 2026.04.20 @ 22:34:23 End 2026.04.20 @ 22:44:34 Sessions 1 Manual Loads 0 Difficulty Rogue Special Mode None Game No. 14 Rogue 14 Adventurer 0 Explorer 0 Win Type - Total 0 Types 0/0/0/0/0/0/0/0/0/0 Lore% 2 Gallery% 8 Achievement% 6 Wizard Run 0 Options --------- Layout 1 ASCII 0 Keyboard 0 Movement Mouse Keybinds 0 Fullscreen 1 Font 24/Smallcaps Map View 25x17 Zoom Use 91% Tactical HUD 1 Map Filters NONE Filters NONE Steam 1 RUN: e6d796ba-e01a-495b-be0a-f20339e63c7f